[Event "Alef Super Stars Blitz 2023"]
[Site "Almamsha"]
[Date "2023.12.06"]
[Round "4.2"]
[White "Sjugirov, Sanan"]
[Black "Yu, Yangyi"]
[Result "1/2-1/2"]
[ECO "C50"]
[WhiteElo "2703"]
[BlackElo "2714"]
[Annotator "TA"]
[PlyCount "212"]
[EventDate "2023.11.27"]
[EventType "tourn"]
[EventCountry "UAE"]
[SourceTitle "playchess.com"]
[Source "ChessBase"]
[SourceQuality "1"]
[TimeControl "180+2"]

{[%evp 48,212,-32,-27,-30,-36,-28,-33,-26,-39,-36,-41,0,-39,-15,-54,-47,-60,-66,-32,-18,-72,-36,-110,-71,-151,-154,-154,-154,-154,-131,-154,-66,-73,-70,-181,-164,-163,-43,-109,-112,-103,-8,-225,-183,-224,-56,-199,0,-232,-20,-623,-614,-593,-168,-207,0,-572,0,-188,0,-563,-305,-233,-258,-205,-110,-110,-27,-38,-8,-45,0,0,0,-22,0,0,0,0,0,0,0,0,0,-1,-1,-1,0,-1,-1,-1,0,0,0,-1,-1,-8,-1,-82,-82,-82,-82,-82,-82,-82,-82,-82,-82,-82,-82,-82,-82,-82,-82,-82,-82,-82,-82,-84,0,-82,0,-82,0,-84,0,-82,-82,-84,0,-82,0,-84,-84,-84,-84,-84,0,-84,-84,-84,-82,-82,-82,-82,-8,-8,-8,-8,-8,-82,-82,-82,-82,-82,-82,-82,0,0,0,-82,0,-83,-83,-116,-116]} 1. e4 {[%emt 0:00:01]} e5 {[%emt 0:00:03]} 2. Nf3 {[%emt 0:00:01]} Nc6 {[%emt 0:00:01]} 3. Bc4 {[%emt 0:00:01]} Nf6 {[%emt 0:00:01]} 4. d3 {[%emt 0:00:00]} Bc5 {[%emt 0:00:00]} 5. a4 {[%emt 0:00:08]} h6 {[%emt 0:00:08]} 6. O-O {[%emt 0:00:02]} d6 {[%emt 0:00:01]} 7. a5 {[%emt 0:00:10]} a6 {[%emt 0:00:01]} 8. c3 {[%emt 0:00:01]} O-O {[%emt 0:00:04]} 9. h3 {[%emt 0:00:01]} Ba7 {[%emt 0:00:07]} 10. Be3 {[%emt 0:00:02]} Bxe3 {[%emt 0:00:25]} 11. fxe3 {[%emt 0:00:01]} b5 {[%emt 0:00:01]} 12. axb6 {[%emt 0:00:02]} cxb6 {[%emt 0:00:01]} 13. Nbd2 {[%emt 0:00:03]} Ra7 {[%emt 0:00:11]} 14. d4 {[%emt 0:00:03]} b5 {[%emt 0:00:02]} 15. Bd3 {[%emt 0:00:02]} Rc7 {[%emt 0:00:15]} 16. Qe1 {[%emt 0:00:08]} Ne7 {[%emt 0:00:06]} 17. Nh4 {[%emt 0:00:02]} Ng6 {[%emt 0:00:03]} 18. Nxg6 {[%emt 0:00:05]} fxg6 {[%emt 0:00:01]} 19. Qg3 {[%emt 0:00:16]} g5 {[%emt 0:00:01]} 20. Rf3 {[%emt 0:00:29]} Rcf7 {[%emt 0:00:06]} 21. Raf1 {[%emt 0:00:04]} Be6 {[%emt 0:00:09]} 22. Qe1 {[%emt 0:00:25]} Qb6 {[%emt 0:00:12]} 23. R3f2 {[%emt 0:00:09]} Qb7 {[%emt 0:00:13]} 24. Qa1 {[%emt 0:00:16]} g4 {[%emt 0:00:10]} 25. hxg4 {[%emt 0:00:02]} Nxg4 {[%emt 0:00:02]} 26. Rxf7 {[%emt 0:00:01]} Rxf7 {[%emt 0:00:00]} 27. Rxf7 {[%emt 0:00:02]} Qxf7 {[%emt 0:00:02]} 28. Qe1 {[%emt 0:00:02]} Qh5 {[%emt 0:00:10]} 29. Nf3 {[%emt 0:00:05]} Qf7 {[%emt 0:00:10]} 30. Qg3 {[%emt 0:00:13]} Qf6 {[%emt 0:00:06]} (30... Nxe3 31. Nxe5 Qh5 32. Qxe3 $11) 31. Nd2 {[%emt 0:00:18]} h5 {[%emt 0:00:02]} 32. Nf1 {[%emt 0:00:17]} g6 {[%emt 0:00:04]} 33. Be2 {[%emt 0:00:03]} Kg7 {[%emt 0:00:02]} 34. Bf3 {[%emt 0:00:13]} (34. Bxg4 $11 {remains equal.} Bxg4 35. Nh2) 34... Qg5 {[%emt 0:00:14]} (34... h4 $5 {[%cal Rh4g3]} 35. Qe1 Qg5 $15) 35. Qe1 {[%emt 0:00:09]} (35. b4 $15) 35... h4 {[%emt 0:00:07]} 36. Kh1 {[%emt 0:00:09]} (36. Qd2 $142) 36... Bc4 $17 {[%emt 0:00:10]} 37. Bxg4 {[%emt 0:00:03]} Qxg4 {[%emt 0:00:01]} 38. Nd2 {[%emt 0:00:02]} Bd3 {[%emt 0:00:07]} 39. dxe5 {[%emt 0:00:04]} dxe5 {[%emt 0:00:01]} ({Don't play} 39... Bxe4 $6 40. Nxe4 (40. exd6 $2 Qxg2#) 40... Qxe4 41. exd6 $11) (39... h3 $1 $17 {[%csl Gh3][%cal Rg4g2]} 40. g3 dxe5) 40. Kh2 $15 {[%emt 0:00:02]} Bxe4 {[%emt 0:00:04]} 41. Qf2 {[%emt 0:00:02]} (41. Nxe4 $15 Qxe4 42. Qd2) 41... Bc6 $19 {[%emt 0:00:12]} 42. b4 {[%emt 0:00:01]} Be4 {[%emt 0:00:05]} ({Black should play} 42... Bd5 $19 {White must now prevent ...g5.} 43. e4 Bc6) 43. Nb3 {[%emt 0:00:02]} (43. Nxe4 $1 $15 Qxe4 44. Qd2) 43... Bf5 $17 {[%emt 0:00:10]} 44. Nc5 {[%emt 0:00:02]} h3 {[%emt 0:00:03]} (44... Bc8 $1 $17 45. Nd3 g5) 45. gxh3 $2 {[%emt 0:00:03]} ({Not} 45. g3 $2 Qc4 46. Nb7 Qxc3 $19) (45. Qf3 $11 {and White is okay.}) 45... Qxh3+ $19 {[%emt 0:00:01]} 46. Kg1 {[%emt 0:00:01]} Qg4+ $2 {[%emt 0:00:02]} (46... g5 $19 {And now ...Kg6 would win.} 47. e4 Bg4) 47. Kh2 {[%emt 0:00:01]} (47. Qg2 $15) 47... Qh3+ {[%emt 0:00:07]} 48. Kg1 {[%emt 0:00:01]} Bg4 $2 {[%emt 0:00:03]} (48... g5 $19 {Threatens to win with ...Kg6.} 49. e4 Bg4) 49. Qd2 $2 {[%emt 0:00:07][%mdl 8192]} (49. Nd3 $11) 49... Qg3+ $19 {[%emt 0:00:03]} 50. Kf1 {[%emt 0:00:01]} Qf3+ $2 {[%emt 0:00:07]} (50... a5 51. bxa5 Bh3+ 52. Ke2 Qg4+ 53. Kd3 Qc4+ 54. Kc2 Qxc5) 51. Kg1 {[%emt 0:00:01]} Qg3+ $2 {[%emt 0:00:03]} (51... Bf5 52. Qf2 Qh3) 52. Kf1 $1 $19 {[%emt 0:00:00]} Qf3+ $2 {[%emt 0:00:02]} (52... a5 53. bxa5 Bh3+ 54. Ke2 Qg4+ 55. Kd3 Qc4+ 56. Kc2 Qxc5) 53. Kg1 $1 $19 {[%emt 0:00:01]} Qg3+ $2 {[%emt 0:00:02]} (53... Bf5 54. Qf2 Qh3) 54. Kf1 $1 $19 {[%emt 0:00:00]} Bh3+ {[%emt 0:00:01]} 55. Ke2 {[%emt 0:00:01]} Qg4+ {[%emt 0:00:02]} 56. Kd3 {[%emt 0:00:03]} Qc4+ {[%emt 0:00:03]} (56... a5 $1 $19 57. Kc2 a4) 57. Kc2 $17 {[%emt 0:00:01]} Qa2+ {[%emt 0:00:01]} ({Black should try} 57... a5 $17 58. Qd6 axb4 59. Qxe5+ Kh7 60. Qe7+ Kh6) 58. Kc1 $11 {[%emt 0:00:02]} Qa1+ {[%emt 0:00:01]} 59. Kc2 {[%emt 0:00:00]} Bf5+ {[%emt 0:00:01]} (59... Qg1 $5 {[%cal Rg6g5]}) 60. e4 {[%emt 0:00:03]} Qa2+ {[%emt 0:00:02]} 61. Kd3 {[%emt 0:00:01]} (61. Kc1 $5 {[%cal Rd2a2]} Qxd2+ 62. Kxd2 $15) 61... Qxd2+ {[%emt 0:00:09]} (61... Qc4+ {looks sharper.} 62. Ke3 Bc8 63. Qd3 g5) 62. Kxd2 {[%emt 0:00:02]} Bc8 {[%emt 0:00:00]} 63. Ke3 {[%emt 0:00:02]} g5 {[%emt 0:00:00]} 64. Kf3 {[%emt 0:00:01]} Kf6 {[%emt 0:00:00]} 65. Kg3 {[%emt 0:00:02]} Ke7 {[%emt 0:00:00]} 66. Kf3 {[%emt 0:00:04]} Kd6 {[%emt 0:00:00]} 67. Nd3 {[%emt 0:00:07]} Bh3 {[%emt 0:00:03]} 68. Nf2 {[%emt 0:00:01]} Be6 {[%emt 0:00:02]} 69. Ng4 {[%emt 0:00:05]} Bb3 {[%emt 0:00:05]} 70. Ne3 {[%emt 0:00:02]} Be6 {[%emt 0:00:02]} 71. Ng4 {[%emt 0:00:01]} Bc8 {[%emt 0:00:03]} 72. Ne3 {[%emt 0:00:02]} Bd7 {[%emt 0:00:02]} 73. Nd5 {[%emt 0:00:03] [#]} (73. Nd1 $11 {keeps the balance.}) 73... g4+ $1 $17 {[%emt 0:00:03]} 74. Kg3 {[%emt 0:00:00]} Bc6 {[%emt 0:00:02]} 75. Ne3 {[%emt 0:00:04]} Bxe4 {[%emt 0:00:01]} 76. Kxg4 {[%emt 0:00:01]} Ke6 {[%emt 0:00:01]} 77. Kg5 {[%emt 0:00:02]} Bd3 {[%emt 0:00:01]} 78. Kg4 {[%emt 0:00:02]} Be2+ {[%emt 0:00:03]} 79. Kg5 {[%emt 0:00:03]} Bf3 {[%emt 0:00:02]} 80. Kh4 {[%emt 0:00:01]} Kf6 {[%emt 0:00:02]} 81. Kg3 {[%emt 0:00:01]} Bb7 {[%emt 0:00:01]} 82. Kg4 {[%emt 0:00:02]} Bc6 {[%emt 0:00:01]} 83. Kh4 {[%emt 0:00:01]} Bf3 {[%emt 0:00:03]} 84. Kg3 {[%emt 0:00:01]} Bb7 {[%emt 0:00:01]} 85. Kg4 {[%emt 0:00:01]} Bc6 {[%emt 0:00:01]} 86. Kh4 $1 {[%emt 0:00:01]} Bb7 {[%emt 0:00:04]} 87. Kg4 {[%emt 0:00:01]} Be4 {[%emt 0:00:01]} 88. Kh4 {[%emt 0:00:02]} Bb7 {[%emt 0:00:02]} 89. Kg4 {[%emt 0:00:01]} Bc6 {[%emt 0:00:01]} 90. Kh4 $1 {[%emt 0:00:00]} Bd7 {[%emt 0:00:00]} 91. Kh5 {[%emt 0:00:09]} Bc8 {[%emt 0:00:06]} 92. Kh4 {[%emt 0:00:01]} Bd7 {[%emt 0:00:02]} 93. Kh5 $1 {[%emt 0:00:01]} Be6 {[%emt 0:00:03]} 94. Kh4 {[%emt 0:00:01]} Kg6 {[%emt 0:00:01]} 95. Kg3 {[%emt 0:00:03]} Kg5 {[%emt 0:00:01]} 96. Kf3 {[%emt 0:00:01]} Bf5 {[%emt 0:00:05]} ({Better is} 96... Bc8 $17 97. Ke4 Kf6) 97. Nd5 $1 $11 {[%emt 0:00:02]} Kg6 {[%emt 0:00:03]} 98. Nc7 {[%emt 0:00:05]} Bc8 {[%emt 0:00:01]} 99. Ke4 {[%emt 0:00:01]} (99. Ne8 $1 $11) 99... Kf6 $17 {[%emt 0:00:01]} 100. Ne8+ {[%emt 0:00:04]} Ke7 {[%emt 0:00:01]} 101. Ng7 {[%emt 0:00:02]} Kd6 {[%emt 0:00:02]} 102. Ne8+ {[%emt 0:00:01]} Kd7 {[%emt 0:00:09]} 103. Ng7 $1 {[%emt 0:00:02]} Kd6 {[%emt 0:00:00]} 104. Ne8+ {[%emt 0:00:01]} Ke7 {[%emt 0:00:00]} 105. Ng7 $1 {[%emt 0:00:02] [#]} ({Much worse is} 105. Nc7 Kd7 106. Nd5 Kd6 $17) 105... Kf7 $1 {[%emt 0:00:00]} 106. Nf5 {[%emt 0:00:05]} Kf6 {[%emt 0:00:03]} 1/2-1/2

[Event "Alef Super Stars Blitz 2023"]
[Site "Almamsha"]
[Date "2023.12.06"]
[Round "5.1"]
[White "Sjugirov, Sanan"]
[Black "Salem, A.R. Saleh"]
[Result "0-1"]
[ECO "C50"]
[WhiteElo "2703"]
[BlackElo "2639"]
[Annotator "TA"]
[PlyCount "71"]
[EventDate "2023.11.27"]
[EventType "tourn"]
[EventCountry "UAE"]
[SourceTitle "playchess.com"]
[Source "ChessBase"]
[SourceQuality "1"]
[TimeControl "180+2"]

{[%evp 9,71,17,36,10,10,15,13,13,20,8,15,14,14,6,20,16,12,22,24,23,9,9,9,0,0,0,7,-1,20,10,35,23,18,8,33,40,33,33,30,17,33,22,28,0,43,23,10,0,35,42,40,0,0,0,0,-7,0,0,0,2,28,0,11,-13]} 1. e4 {[%emt 0:00:01]} e5 {[%emt 0:00:01]} 2. Nf3 {[%emt 0:00:01]} Nc6 {[%emt 0:00:00]} 3. Bc4 {[%emt 0:00:02]} Nf6 {[%emt 0:00:01]} 4. d3 {[%emt 0:00:01]} Bc5 {[%emt 0:00:01]} 5. a4 {[%emt 0:00:02]} O-O {[%emt 0:00:05]} 6. O-O {[%emt 0:00:02] C50: Hungarian Defence and Giuoco Pianissimo.} d6 {[%emt 0:00:02]} 7. h3 {[%emt 0:00:05] is recently more successful than 7.c3.} a6 {[%emt 0:00:15]} 8. c3 {[%emt 0:00:10]} h6 {[%emt 0:00:10]} 9. a5 {[%emt 0:00:01]} Re8 $5 {[%emt 0:00:08][%mdl 4] Leaves trodden paths.} 10. Re1 {[%emt 0:00:03]} Ba7 {[%emt 0:00:08]} 11. Qb3 {[%emt 0:00:01]} Rf8 {[%emt 0:00:04] [#]} 12. Be3 $146 {[%emt 0:00:06]} ({Predecessor:} 12. Nbd2 Nh5 13. Nf1 Qf6 14. Be3 Nf4 15. Bxf4 Qxf4 16. Ne3 {½-½ Yeo,G (2378)-Uberos Fernandez,A (2326) ESP MG2/C email 2017}) 12... Bxe3 {[%emt 0:00:04]} 13. Rxe3 {[%emt 0:00:01]} Nh5 {[%emt 0:00:02]} 14. Nbd2 {[%emt 0:00:13]} Nf4 {[%emt 0:00:02]} 15. d4 {[%emt 0:00:41]} Qf6 {[%emt 0:00:02][%cal Re5d4]} 16. dxe5 {[%emt 0:00:00]} dxe5 {[%emt 0:00:09]} 17. Bf1 {[%emt 0:00:06]} Rd8 {[%emt 0:00:05]} 18. Qc2 {[%emt 0:00:21]} Be6 {[%emt 0:00:23]} 19. Kh2 {[%emt 0:00:02]} Rd7 {[%emt 0:00:07]} 20. g3 {[%emt 0:00:02]} Ng6 {[%emt 0:00:16]} 21. Kg1 {[%emt 0:00:12]} Rad8 {[%emt 0:00:02]} 22. b4 {[%emt 0:00:13]} Na7 {[%emt 0:00:23][%cal Oc7c5]} 23. Nb3 {[%emt 0:00:07][%cal Bd2b3,Bb3c5,Bc5d3][%mdl 32] Strongly threatening Nc5.} Rd6 {[%emt 0:00:09]} 24. Nc5 {[%emt 0:00:05]} Bc8 {[%emt 0:00:00]} 25. Bg2 {[%emt 0:00:20]} Nb5 {[%emt 0:00:03]} 26. Bf1 {[%emt 0:00:17]} Nf8 {[%emt 0:00:07]} 27. Nd3 {[%emt 0:00:18]} Ng6 {[%emt 0:00:03]} 28. Nc5 {[%emt 0:00:01]} c6 {[%emt 0:00:00]} 29. Kg2 {[%emt 0:00:06]} Nc7 {[%emt 0:00:14]} 30. Rae1 {[%emt 0:00:22]} Ne6 {[%emt 0:00:02]} 31. Nxe6 {[%emt 0:00:00]} Bxe6 {[%emt 0:00:02]} 32. Be2 {[%emt 0:00:00]} Bc8 {[%emt 0:00:20]} 33. Rd1 {[%emt 0:00:02]} Rxd1 {[%emt 0:00:11]} 34. Bxd1 {[%emt 0:00:01]} Qe6 {[%emt 0:00:09]} 35. Ng1 {[%emt 0:00:04]} Qe7 {[%emt 0:00:05]} 36. Be2 {[%emt 0:00:05][%mdl 32768] Weighted Error Value: White=0.07 (flawless) /Black=0.07 (flawless) . Loss on time!?} 0-1

[Event "Alef Super Stars Blitz 2023"]
[Site "Almamsha"]
[Date "2023.12.06"]
[Round "5.2"]
[White "Yu, Yangyi"]
[Black "Nihal Sarin"]
[Result "1/2-1/2"]
[ECO "B06"]
[WhiteElo "2714"]
[BlackElo "2688"]
[Annotator "TA"]
[PlyCount "128"]
[EventDate "2023.11.27"]
[EventType "tourn"]
[EventCountry "UAE"]
[SourceTitle "playchess.com"]
[Source "ChessBase"]
[SourceQuality "1"]
[TimeControl "180+2"]

{[%evp 9,128,30,42,31,28,24,37,44,71,91,78,62,202,197,185,189,165,164,233,121,115,19,25,12,52,17,22,0,0,0,0,0,0,0,0,0,0,0,0,-10,0,0,0,-24,-22,-24,-12,-19,-26,-20,-20,-17,-19,-4,0,-168,-149,-303,-297,-291,-266,-313,-308,-279,-304,-291,-152,-279,-253,-214,-93,-94,-95,-99,-107,-95,0,-556,-52,-554,-188,-129,-148,-134,-9,-134,-96,-127,-101,-579,-579,-579,-463,-460,-10,-10,-10,-754,-465,-421,-22,-27,-8,-8,-8,-8,-8,-8,0,-8,-8,-8,-8,-8,-8,-8,0,0,0,-8,-8]} 1. e4 {[%emt 0:00:01]} g6 {[%emt 0:00:01]} 2. d4 {[%emt 0:00:03]} Bg7 {[%emt 0:00:02]} 3. Nf3 {[%emt 0:00:01]} d6 {[%emt 0:00:02]} 4. Bc4 {[%emt 0:00:02]} e6 {[%emt 0:00:12]} 5. c3 {[%emt 0:00:03]} Ne7 {[%emt 0:00:01]} 6. Nbd2 {[%emt 0:00:08] B06: Modern Defence.} O-O {[%emt 0:00:09]} 7. O-O {[%emt 0:00:03]} d5 {[%emt 0:00:02]} 8. Bb3 {[%emt 0:00:06] White is slightly better.} dxe4 {[%emt 0:00:02]} 9. Nxe4 {[%emt 0:00:01]} b6 {[%emt 0:00:08] [#]} 10. Bg5 $146 {[%emt 0:00:03] White is more active.} ({Predecessor:} 10. Re1 h6 11. a3 Bb7 12. Bf4 Nd7 13. Qe2 Rc8 14. Rad1 Bxe4 15. Qxe4 Nf6 16. Qe2 {½-½ Damm,G-Guenther,L Wch Seniors 02nd 1992 (8)}) 10... Nd7 {[%emt 0:00:00]} (10... h6 $14) 11. d5 $18 {[%emt 0:00:07]} exd5 {[%emt 0:00:06]} 12. Bxd5 {[%emt 0:00:02]} Rb8 {[%emt 0:00:00]} 13. Re1 {[%emt 0:00:04] Threatens to win with Nd4.} h6 {[%emt 0:00:02]} (13... Kh8 {was necessary.}) 14. Bxe7 {[%emt 0:00:15]} (14. Nd6 $1 $18 hxg5 15. Nxf7 Rxf7 16. Bxf7+ Kh8 17. Nxg5) 14... Qxe7 $16 {[%emt 0:00:01]} 15. Nd4 {[%emt 0:00:02]} (15. Neg5 $1 $16 Qf6 16. Ne6) 15... Ne5 $1 $11 {[%emt 0:00:25]} 16. f4 {[%emt 0:00:07]} Qd7 $1 {[%emt 0:00:08]} 17. Bb3 {[%emt 0:00:44]} (17. Nc2 $5 {[%cal Rf4e5]} Nc6 18. Qf3 $11) 17... Nc6 {[%emt 0:00:06][%cal Rc6d4]} 18. Nf3 {[%emt 0:00:05]} Na5 {[%emt 0:00:19]} 19. Qxd7 {[%emt 0:00:15]} Bxd7 {[%emt 0:00:01]} 20. Ne5 {[%emt 0:00:00]} Bxe5 {[%emt 0:00:51]} 21. fxe5 {[%emt 0:00:01]} Kg7 {[%emt 0:00:01]} 22. Nf6 {[%emt 0:00:20]} Rbd8 {[%emt 0:00:10]} 23. Nxd7 {[%emt 0:00:21]} Rxd7 {[%emt 0:00:02]} 24. Rad1 {[%emt 0:00:13] Inhibits Rd2.} Rfd8 {[%emt 0:00:12]} 25. Rxd7 {[%emt 0:00:03]} Rxd7 {[%emt 0:00:01][%mdl 4096] Endgame KRB-KRN} 26. e6 {[%emt 0:00:00]} (26. Ba4 $5 {[%cal Ra4d7]} Rd2 27. b4 Rxa2 28. Bb5 $11) 26... Re7 {[%emt 0:00:32]} 27. Bd5 {[%emt 0:00:04]} c6 {[%emt 0:00:00]} 28. Bf3 {[%emt 0:00:02]} Rxe6 {[%emt 0:00:03]} 29. Rxe6 {[%emt 0:00:03]} fxe6 {[%emt 0:00:01] KB-KN} 30. b4 {[%emt 0:00:01]} Nc4 {[%emt 0:00:01]} 31. Bxc6 {[%emt 0:00:00]} Kf6 {[%emt 0:00:01]} 32. Bb5 $2 {[%emt 0:00:10]} (32. Kf2 $11) 32... Ne3 $1 $19 {[%emt 0:00:09]} 33. c4 $2 {[%emt 0:00:09] Against Nd5} (33. a3 $17 {might work better.}) 33... Nc2 {[%emt 0:00:02]} 34. c5 {[%emt 0:00:08]} Nxb4 {[%emt 0:00:01]} 35. cxb6 {[%emt 0:00:10]} axb6 {[%emt 0:00:01]} 36. a3 {[%emt 0:00:02]} Nc2 {[%emt 0:00:06]} 37. a4 {[%emt 0:00:00]} Nd4 {[%emt 0:00:03]} (37... Ne3 $19 {aiming for ...Ke5.} 38. Kf2 Nd5) 38. Bd3 {[%emt 0:00:02]} (38. Be8 $17) 38... g5 {[%emt 0:00:02]} 39. Kf2 {[%emt 0:00:01] [#]} Nb3 {[%emt 0:00:05]} (39... Ke5 $1 $19 {has better winning chances. ...Nf5 would be deadly.} 40. g3 Kd5) 40. Bc2 {[%emt 0:00:04]} Nc5 {[%emt 0:00:02]} 41. Kf3 {[%emt 0:00:03]} Ke5 {[%emt 0:00:05] And now ...Kd4 would win.} 42. Kg4 {[%emt 0:00:01]} Kf6 {[%emt 0:00:01]} ({Black should try} 42... Kd6 $17 43. Kh5 e5 44. Kxh6 e4 45. Kxg5 e3) 43. Kh5 $2 {[%emt 0:00:02][%mdl 8192]} (43. Kf3 $1 $11 {and White is okay.}) 43... Kg7 $2 {[%emt 0:00:01]} (43... e5 $19 {Strongly threatening ...e4.} 44. Kg4 e4) 44. g3 $2 {[%emt 0:00:03][%mdl 8192]} (44. h4 $15) 44... Nd7 $2 {[%emt 0:00:02]} (44... e5 45. Kg4 e4) 45. Kg4 {[%emt 0:00:01]} Ne5+ {[%emt 0:00:02]} 46. Kh5 {[%emt 0:00:03]} Nc4 {[%emt 0:00:03]} ({Black should play} 46... Nf3 $17 47. h3 e5) 47. h4 {[%emt 0:00:01]} (47. Bb3 $11 {was the only way to keep the balance.} Nb2 48. Bxe6) 47... gxh4 $17 {[%emt 0:00:02]} 48. Kxh4 {[%emt 0:00:05]} Ne3 {[%emt 0:00:01]} 49. Bb3 {[%emt 0:00:02][%mdl 8192]} (49. Bb1 $17 {is a better chance.}) 49... e5 $19 {[%emt 0:00:04]} 50. g4 {[%emt 0:00:03]} Kg6 {[%emt 0:00:03]} 51. Ba2 {[%emt 0:00:06] [#]} Ng2+ $2 {[%emt 0:00:02]} (51... Nd1 $1 $19 {[%cal Rd1c3]} 52. Bb1+ Kf7) 52. Kg3 $11 {[%emt 0:00:00]} Nf4 {[%emt 0:00:01] Hoping for ...Nd3.} 53. Kh4 $2 {[%emt 0:00:03][%mdl 8192]} (53. Kf3 $11) 53... Kf6 {[%emt 0:00:01] ...e4 is the strong threat.} 54. Bb1 {[%emt 0:00:02] Inhibits e4.} Nd5 $2 {[%emt 0:00:04]} ({Better is} 54... Ke6 $19 55. g5 hxg5+ 56. Kxg5 Kd5) 55. Kh5 $1 {[%emt 0:00:02]} Kg7 {[%emt 0:00:02]} (55... Nc3 $5 {[%cal Rc3b1]} 56. Bc2 Ke7 57. Kxh6 e4 $11) 56. g5 {[%emt 0:00:01] The position is equal.} hxg5 {[%emt 0:00:03]} 57. Kxg5 {[%emt 0:00:01]} Nc3 {[%emt 0:00:01][%csl LRa4,LRb1]} 58. Bc2 {[%emt 0:00:01]} Nd5 {[%emt 0:00:01]} 59. Kf5 {[%emt 0:00:09]} Ne3+ {[%emt 0:00:01]} 60. Kxe5 {[%emt 0:00:01]} Nxc2 {[%emt 0:00:01]} 61. Kd5 {[%emt 0:00:01]} Nb4+ {[%emt 0:00:03]} 62. Kc4 {[%emt 0:00:00]} Na6 {[%emt 0:00:03]} 63. Kb5 {[%emt 0:00:01][%csl LRa6,LRb6]} Nc5 {[%emt 0:00:00]} 64. Kxb6 {[%emt 0:00:02]} Nxa4+ {[%emt 0:00:05] Never resign too early!   Weighted Error Value: White=0.69/Black=0.65} 1/2-1/2